{"text_format":"3","workbook":"xlsx","n_sheets":1,"sheets":["PRICING SCHEDULE"],"not_rendered":{"images":1,"defined_names":2},"read":"whole","date_system":"1900"}

{"sheet":"PRICING SCHEDULE","index":0,"n_rows":102,"n_cols":25,"rows_kept":102,"merged":[[11,2,11,5],[11,6,11,9],[11,10,11,13],[11,14,11,17],[11,18,11,21],[98,1,101,1],[98,3,98,4],[100,3,100,4],[101,3,101,4]]}
[null,"SUPPLY CHAIN MANAGEMENT"]
[null,"Pricing schedule"]
["RFB No","2751-2023"]
["RFB Title","THE APPOINTMENT OF A SERVICE PROVIDER TO INSTALL, SERVICE AND MAINTAIN THE NOVEC GAS FIRE DETECTION, SUPPRESSION AND PREVENTION SYSTEM UNDER A MAINTENANCE CONTRACT FOR 5 YEARS (60) MONTHS AT SITA PRETORIA DATA CENTRE NAMELY CENTURION, BETA AND NUMERUS BUILDINGS"]
["Bidder Name "]
[]
["1. INSTRUCTION FOR COMPLETING THE PRICING SCHEDULE"]
["(a)  Bidder must complete/enter YELLOW cells only"]
["(b)  Unit and Line prices must be VAT EXCLUSIVE and in South African Rand (ZAR) currency."]
["(c) The price must include all cost to deliver the goods or render the service, including all applicable taxes, duty fees, logistics/delivery, storage, labour, overtime and subsistance and travel"]
[]
[null,null,"YEAR 1",{"$nulls":3},"YEAR 2",{"$nulls":3},"Year 3",{"$nulls":3},"YEAR 4",{"$nulls":3},"YEAR 5",{"$nulls":3},"All Years"]
["Item No","Goods/Service description","Unit of measure","Qty ","Unit Price \n(Excl VAT)","Line Price ","Unit of measure","Qty ","Unit Price \n(Excl VAT)","Line Price ","Unit of measure","Qty ","Unit Price \n(Excl VAT)","Line Price ","Unit of measure","Qty ","Unit Price \n(Excl VAT)","Line Price ","Unit of measure","Qty ","Unit Price \n(Excl VAT)","Line Price ","Line Price-TOTAL ","BRAND / MODEL (if applicable)","Price clarification comment"]
[1,"CENTURION SERVICE PACKAGE ",{"$nulls":3},{"$f":"SUBTOTAL(9,F15:F22)","v":0},{"$nulls":3},{"$f":"SUBTOTAL(9,J15:J22)","v":0},{"$nulls":3},{"$f":"SUBTOTAL(9,N15:N22)","v":0},{"$nulls":3},{"$f":"SUBTOTAL(9,R15:R22)","v":0},{"$nulls":3},{"$f":"SUBTOTAL(9,V15:V22)","v":0},{"$f":"SUBTOTAL(9,W15:W22)","v":0}]
["1.1","Hydrotesting of cylinders and certification","Each",109,null,{"$f":"D15*E15","v":0},"Each",15,null,{"$f":"H15*I15","v":0},"Each",15,null,{"$f":"L15*M15","v":0},"Each",5,null,null,"Each",5,null,{"$f":"T15*U15","v":0},{"$f":"SUM(F15+J15+N15+R15+V15)","v":0}]
["1.2","Replace Electrical Actuator- UL Bridge rectifier and Switch","Each",30,null,{"$f":"D16*E16","v":0},"Each",5,null,{"$f":"H16*I16","v":0},"Each",5,null,0,"Each",5,null,{"$f":"P16*Q16","v":0},"Each",5,null,{"$f":"T16*U16","v":0},0]
["1.3","50mm Sapphire container valve reconditioning","Each",109,null,{"$f":"D17*E17","v":0},"Each",15,null,{"$f":"H17*I17","v":0},"Each",15,null,0,"Each",55,null,0,"Each",5,null,{"$f":"T17*U17","v":0},0]
["1.4","Refilling of lost Novec 1230 ","kg",2500,null,0,"kg",500,null,0,"kg",500,null,0,"kg",100,null,0,"kg",100,null,{"$f":"T18*U18","v":0},0]
["1.5","Dismantling and refitting of Cylinders ","Each",109,null,0,"Each",15,null,0,"Each",15,null,0,"Each",5,null,0,"Each",5,null,null,{"$f":"SUM(F19+J19+N19+R19+V19)","v":0}]
["1.6","Collecting and Transportation of Cylinders","Each",109,null,0,"Each",15,null,0,"Each",15,null,0,"Each",5,null,0,"Each",5,null,{"$f":"T20*U20","v":0},{"$f":"SUM(F20+J20+N20+R20+V20)","v":0}]
["1.7","Replace internal filter on Vesda or Securiton (or similar) Sampling unit","Each",5,null,0,"Each",5,null,0,"Each",5,null,0,"Each",5,null,0,"Each",5,null,{"$f":"T21*U21","v":0},0]
["1.8","Room integrity test (approximately 65 cubic square meters)","Each",5,null,0,"Each",2,null,0,"Each",2,null,0,"Each",2,null,0,"Each",2,null,{"$f":"T22*U22","v":0},0]
[2,"BETA SERVICE PACKAGE ",{"$nulls":3},{"$f":"SUBTOTAL(9,F24:F31)","v":0},{"$nulls":3},{"$f":"SUBTOTAL(9,J24:J31)","v":0},{"$nulls":3},{"$f":"SUBTOTAL(9,N24:N31)","v":0},{"$nulls":3},{"$f":"SUBTOTAL(9,R24:R31)","v":0},{"$nulls":3},{"$f":"SUBTOTAL(9,V24:V31)","v":0},{"$f":"SUBTOTAL(9,W24:W31)","v":0}]
["2.1","Hydrotesting of cylinders and certification","Each",89,null,{"$f":"D24*E24","v":0},"Each",10,null,{"$f":"H24*I24","v":0},"Each",10,null,{"$f":"L24*M24","v":0},"Each",5,null,{"$f":"P24*Q24","v":0},"Each",5,null,{"$f":"T24*U24","v":0},{"$f":"SUM(F24+J24+N24+R24+V24)","v":0}]
["2.2","Replace Electrical Actuator- UL Bridge rectifier and Switch","Each",20,null,{"$f":"D25*E25","v":0},"Each",5,null,{"$f":"H25*I25","v":0},"Each",5,null,0,"Each",5,null,0,"Each",5,null,0,0]
["2.3","50mm Sapphire container valve reconditioning","Each",89,null,{"$f":"D26*E26","v":0},"Each",20,null,{"$f":"H26*I26","v":0},"Each",20,null,0,"Each",10,null,0,"Each",10,null,0,{"$f":"SUM(F26+J26+N26+R26+V26)","v":0}]
["2.4","Decanting and refilling of Novec 1230","kg",1500,null,0,"kg",250,null,0,"kg",250,null,0,"kg",50,null,0,"kg",50,null,0,{"$f":"SUM(F27+J27+N27+R27+V27)","v":0}]
["2.5","Dismantling and refitting of Cylinders ","Each",89,null,0,"Each",20,null,0,"Each",20,null,0,"Each",10,null,0,"Each",10,null,0,0]
["2.6","Collecting and Transportation of Cylinders","Each",89,null,0,"Each",20,null,0,"Each",20,null,0,"Each",10,null,0,"Each",10,null,0,0]
["2.7","Replace internal filter on Vesda or Securiton (or similar) Sampling unit","Each",5,null,0,"Each",5,null,0,"Each",5,null,0,"Each",5,null,0,"Each",5,null,0,0]
["2.8","Room integrity test (approximately 65 cubic square meters)","Each",5,null,0,"Each",5,null,0,"Each",5,null,0,"Each",5,null,0,"Each",5,null,0,0]
[3,"NUMERUS SERVICE PACKAGE ",{"$nulls":3},{"$f":"SUBTOTAL(9,F33:F40)","v":0},{"$nulls":3},{"$f":"SUBTOTAL(9,J33:J40)","v":0},{"$nulls":3},{"$f":"SUBTOTAL(9,N33:N40)","v":0},{"$nulls":3},{"$f":"SUBTOTAL(9,R33:R40)","v":0},{"$nulls":3},{"$f":"SUBTOTAL(9,V33:V40)","v":0},{"$f":"SUBTOTAL(9,W33:W40)","v":0}]
["3.1","Hydrotesting of cylinders and certification","Each",65,null,{"$f":"D33*E33","v":0},"Each",30,null,{"$f":"H33*I33","v":0},"Each",30,null,{"$f":"L33*M33","v":0},"Each",10,null,{"$f":"P33*Q33","v":0},"Each",10,null,{"$f":"T33*U33","v":0},0]
["3.2","Replace Electrical Actuator- UL Bridge rectifier and Switch","Each",16,null,{"$f":"D34*E34","v":0},"Each",10,null,{"$f":"H34*I34","v":0},"Each",5,null,0,"Each",5,null,0,"Each",5,null,0,0]
["3.3","50mm Sapphire container valve reconditioning","Each",65,null,{"$f":"D35*E35","v":0},"Each",30,null,{"$f":"H35*I35","v":0},"Each",15,null,0,"Each",5,null,0,"Each",5,null,0,0]
["3.4","Decanting and refilling of Novec 1230","kg",1250,null,0,"kg",200,null,0,"kg",200,null,0,"kg",50,null,0,"kg",50,null,0,0]
["3.5","Dismantling and refitting of Cylinders ","Each",65,null,0,"Each",65,null,0,"Each",65,null,0,"Each",35,null,0,"Each",35,null,0,0]
["3.6","Collecting and Transportation of Cylinders","Each",65,null,0,"Each",65,null,0,"Each",65,null,0,"Each",35,null,0,"Each",35,null,0,0]
["3.7","Replace internal filter on Vesda or Securiton (or similar) Sampling unit","Each",5,null,0,"Each",5,null,0,"Each",5,null,0,"Each",5,null,0,"Each",5,null,0,0]
["3.8","Room integrity test (approximately 65 cubic square meters)","Each",10,null,0,"Each",2,null,0,"Each",1,null,0,"Each",1,null,0,"Each",1,null,0,0]
[4,"ERASMUSKLOOF NEW INSTALLATION",{"$nulls":3},{"$f":"SUBTOTAL(9,F42:F43)","v":0}]
["4.1","Supply, install and commissioning of a gas suppression system in the server room as per details in the bid specification and Annexure A1- Equipment List","Sum",1,null,0]
["4.2","Supply, install and commissioning of a gas suppression system in the switching centre as per details in the bid specification and Annexure A1- Equipment List","Sum",1,null,{"$f":"D43*E43","v":0}]
[5,"ERASMUSKLOOF MAINTENANCE AND SUPPORT PACKAGE ",{"$nulls":3},{"$f":"SUBTOTAL(9,F45:F64)","v":0},{"$nulls":3},{"$f":"SUBTOTAL(9,J45:J64)","v":0},{"$nulls":3},{"$f":"SUBTOTAL(9,N45:N64)","v":0},{"$nulls":3},{"$f":"SUBTOTAL(9,R45:R64)","v":0},{"$nulls":3},{"$f":"SUBTOTAL(9,V45:V64)","v":0},{"$f":"SUBTOTAL(9,W45:W46)","v":0}]
["5.1","Server room","Quarterly",4,null,{"$f":"D45*E45","v":0},"Quarterly",4,null,{"$f":"H45*I45","v":0},"Quarterly",4,null,{"$f":"L45*M45","v":0},"Quarterly",4,null,{"$f":"P45*Q45","v":0},"Quarterly",4,null,{"$f":"T45*U45","v":0},0]
["5.2","Switching centre","Quarterly",4,null,{"$f":"D46*E46","v":0},"Quarterly",4,null,{"$f":"H46*I46","v":0},"Quarterly",4,null,{"$f":"L46*M46","v":0},"Quarterly",4,null,{"$f":"P46*Q46","v":0},"Quarterly",4,null,{"$f":"T46*U46","v":0},0]
[6,"CENTURION MAINTENANCE AND SUPPORT PACKAGE ",{"$nulls":3},{"$f":"SUBTOTAL(9,F48:F67)","v":0},{"$nulls":3},{"$f":"SUBTOTAL(9,J48:J67)","v":0},{"$nulls":3},{"$f":"SUBTOTAL(9,N48:N67)","v":0},{"$nulls":3},{"$f":"SUBTOTAL(9,R48:R67)","v":0},{"$nulls":3},{"$f":"SUBTOTAL(9,V48:V67)","v":0},{"$f":"SUBTOTAL(9,W48:W67)","v":0}]
["6.1","HT Room (Level -2)","Quarterly",4,null,{"$f":"D48*E48","v":0},"Quarterly",4,null,{"$f":"H48*I48","v":0},"Quarterly",4,null,{"$f":"L48*M48","v":0},"Quarterly",4,null,{"$f":"P48*Q48","v":0},"Quarterly",4,null,{"$f":"T48*U48","v":0},0]
["6.2","Transformer 3 and 4 Room (Level -2)","Quarterly",4,null,0,"Quarterly",4,null,0,"Quarterly",4,null,0,"Quarterly",4,null,0,"Quarterly",4,null,0,0]
["6.3","Transformer 1 and 2 Room (Level -2)","Quarterly",4,null,0,"Quarterly",4,null,0,"Quarterly",4,null,0,"Quarterly",4,null,0,"Quarterly",4,null,0,0]
["6.4","LT Room (Level -2)","Quarterly",4,null,0,"Quarterly",4,null,0,"Quarterly",4,null,0,"Quarterly",4,null,0,"Quarterly",4,null,0,0]
["6.5","Lower Level Battery Room (Level -2)","Quarterly",4,null,0,"Quarterly",4,null,0,"Quarterly",4,null,0,"Quarterly",4,null,0,"Quarterly",4,null,0,0]
["6.6","Upper Level Battery Room","Quarterly",4,null,0,"Quarterly",4,null,0,"Quarterly",4,null,0,"Quarterly",4,null,0,"Quarterly",4,null,0,0]
["6.7","Future UPS ROOM (Level -2)","Quarterly",4,null,0,"Quarterly",4,null,0,"Quarterly",4,null,0,"Quarterly",4,null,0,"Quarterly",4,null,0,0]
["6.8","Current UPS Room (Level -2)","Quarterly",4,null,0,"Quarterly",4,null,0,"Quarterly",4,null,0,"Quarterly",4,null,0,"Quarterly",4,null,0,0]
["6.9","Main Frame Room 1 (Level -2)","Quarterly",4,null,0,"Quarterly",4,null,0,"Quarterly",4,null,0,"Quarterly",4,null,0,"Quarterly",4,null,0,0]
["6.10","Main Frame Room 2 (Level -2)","Quarterly",4,null,0,"Quarterly",4,null,0,"Quarterly",4,null,0,"Quarterly",4,null,0,"Quarterly",4,null,0,0]
["6.11","Department of Home Affairs Room (Level -2)","Quarterly",4,null,0,"Quarterly",4,null,0,"Quarterly",4,null,0,"Quarterly",4,null,0,"Quarterly",4,null,0,0]
["6.12","Engineers Office (Level -2)","Quarterly",4,null,0,"Quarterly",4,null,0,"Quarterly",4,null,0,"Quarterly",4,null,0,"Quarterly",4,null,0,0]
["6.13","Switching Centre Room 1 (Level -1)","Quarterly",4,null,0,"Quarterly",4,null,0,"Quarterly",4,null,0,"Quarterly",4,null,0,"Quarterly",4,null,0,0]
["6.14","Switching Centre Room 2 (Level -1)","Quarterly",4,null,0,"Quarterly",4,null,0,"Quarterly",4,null,0,"Quarterly",4,null,0,"Quarterly",4,null,0,0]
["6.15","Lab (Level -1)","Quarterly",4,null,0,"Quarterly",4,null,0,"Quarterly",4,null,0,"Quarterly",4,null,0,"Quarterly",4,null,0,0]
["6.16","Server Rarm Room 1 (Level -1)","Quarterly",4,null,0,"Quarterly",4,null,0,"Quarterly",4,null,0,"Quarterly",4,null,0,"Quarterly",4,null,0,0]
["6.17","Server Rarm Room 2 (Level -1)","Quarterly",4,null,0,"Quarterly",4,null,0,"Quarterly",4,null,0,"Quarterly",4,null,0,"Quarterly",4,null,0,0]
["6.18","Knock (Level -1)","Quarterly",4,null,0,"Quarterly",4,null,0,"Quarterly",4,null,0,"Quarterly",4,null,0,"Quarterly",4,null,0,0]
["6.19","Storage (Level -1)","Quarterly",4,null,0,"Quarterly",4,null,0,"Quarterly",4,null,0,"Quarterly",4,null,0,"Quarterly",4,null,0,0]
["6.20","Office 3 (Level -1)","Quarterly",4,null,0,"Quarterly",4,null,0,"Quarterly",4,null,0,"Quarterly",4,null,0,"Quarterly",4,null,0,0]
[7,"BETA MAINTENANCE AND SUPPORT PACKAGE ",{"$nulls":3},{"$f":"SUBTOTAL(9,F69:F81)","v":0},{"$nulls":3},{"$f":"SUBTOTAL(9,J69:J81)","v":0},{"$nulls":3},{"$f":"SUBTOTAL(9,N69:N81)","v":0},{"$nulls":3},{"$f":"SUBTOTAL(9,R69:R81)","v":0},{"$nulls":3},{"$f":"SUBTOTAL(9,V69:V81)","v":0},{"$f":"SUBTOTAL(9,W69:W81)","v":0}]
["7.1","HT Room","Quarterly",4,null,{"$f":"D69*E69","v":0},"Quarterly",4,null,{"$f":"H69*I69","v":0},"Quarterly",4,null,{"$f":"L69*M69","v":0},"Quarterly",4,null,{"$f":"P69*Q69","v":0},"Quarterly",4,null,{"$f":"T69*U69","v":0},0]
["7.2","LT Room","Quarterly",4,null,{"$f":"D70*E70","v":0},"Quarterly",4,null,{"$f":"H70*I70","v":0},"Quarterly",4,null,0,"Quarterly",4,null,0,"Quarterly",4,null,0,0]
["7.3","Transformer Room","Quarterly",4,null,0,"Quarterly",4,null,0,"Quarterly",4,null,0,"Quarterly",4,null,0,"Quarterly",4,null,0,0]
["7.4","UPS Room","Quarterly",4,null,0,"Quarterly",4,null,0,"Quarterly",4,null,0,"Quarterly",4,null,0,"Quarterly",4,null,0,0]
["7.5","Generator Room","Quarterly",4,null,0,"Quarterly",4,null,0,"Quarterly",4,null,0,"Quarterly",4,null,0,"Quarterly",4,null,0,0]
["7.6","Battery Room","Quarterly",4,null,0,"Quarterly",4,null,0,"Quarterly",4,null,0,"Quarterly",4,null,0,"Quarterly",4,null,0,0]
["7.7","Main Printing Room","Quarterly",4,null,0,"Quarterly",4,null,0,"Quarterly",4,null,0,"Quarterly",4,null,0,"Quarterly",4,null,0,0]
["7.8","Second Computer Room","Quarterly",4,null,0,"Quarterly",4,null,0,"Quarterly",4,null,0,"Quarterly",4,null,0,"Quarterly",4,null,0,0]
["7.9","Printing Room Store","Quarterly",4,null,0,"Quarterly",4,null,0,"Quarterly",4,null,0,"Quarterly",4,null,0,"Quarterly",4,null,0,0]
["7.10","DR Room 1 and 2","Quarterly",4,null,0,"Quarterly",4,null,0,"Quarterly",4,null,0,"Quarterly",4,null,0,"Quarterly",4,null,0,0]
["7.11","Switching Centre","Quarterly",4,null,0,"Quarterly",4,null,0,"Quarterly",4,null,0,"Quarterly",4,null,0,"Quarterly",4,null,0,0]
["7.12","West Passage","Quarterly",4,null,0,"Quarterly",4,null,0,"Quarterly",4,null,0,"Quarterly",4,null,0,"Quarterly",4,null,0,0]
["7.13","East Passage","Quarterly",4,null,0,"Quarterly",4,null,0,"Quarterly",4,null,0,"Quarterly",4,null,0,"Quarterly",4,null,0,0]
[8,"NUMERUS MAINTENANCE AND SUPPORT PACKAGE ",{"$nulls":3},{"$f":"SUBTOTAL(9,F83:F92)","v":0},{"$nulls":3},{"$f":"SUBTOTAL(9,J83:J92)","v":0},{"$nulls":3},{"$f":"SUBTOTAL(9,N83:N92)","v":0},{"$nulls":3},{"$f":"SUBTOTAL(9,R83:R92)","v":0},{"$nulls":3},{"$f":"SUBTOTAL(9,V83:V92)","v":0},{"$f":"SUBTOTAL(9,W83:W92)","v":0}]
["8.1","Generator Room ","Quarterly",4,null,{"$f":"D83*E83","v":0},"Quarterly",4,null,{"$f":"H83*I83","v":0},"Quarterly",4,null,{"$f":"L83*M83","v":0},"Quarterly",4,null,{"$f":"P83*Q83","v":0},"Quarterly",4,null,{"$f":"T83*U83","v":0},0]
["8.2","Plant Area (HT Room)","Quarterly",4,null,{"$f":"D84*E84","v":0},"Quarterly",4,null,{"$f":"H84*I84","v":0},"Quarterly",4,null,0,"Quarterly",4,null,0,"Quarterly",4,null,0,0]
["8.3","Transformer Room","Quarterly",4,null,0,"Quarterly",4,null,0,"Quarterly",4,null,0,"Quarterly",4,null,0,"Quarterly",4,null,0,0]
["8.4","Battery Room","Quarterly",4,null,0,"Quarterly",4,null,0,"Quarterly",4,null,0,"Quarterly",4,null,0,"Quarterly",4,null,0,0]
["8.5","UPS Room","Quarterly",4,null,0,"Quarterly",4,null,0,"Quarterly",4,null,0,"Quarterly",4,null,0,"Quarterly",4,null,0,0]
["8.6","Low Tension Room","Quarterly",4,null,0,"Quarterly",4,null,0,"Quarterly",4,null,0,"Quarterly",4,null,0,"Quarterly",4,null,0,0]
["8.7","IJS","Quarterly",4,null,0,"Quarterly",4,null,0,"Quarterly",4,null,0,"Quarterly",4,null,0,"Quarterly",4,null,0,0]
["8.8","West Passage","Quarterly",4,null,0,"Quarterly",4,null,0,"Quarterly",4,null,0,"Quarterly",4,null,0,"Quarterly",4,null,0,0]
["8.9","Computer Room 1 and 2","Quarterly",4,null,0,"Quarterly",4,null,0,"Quarterly",4,null,0,"Quarterly",4,null,0,"Quarterly",4,null,0,0]
["8.10","East Passage","Quarterly",4,null,{"$f":"D92*E92","v":0},"Quarterly",4,null,0,"Quarterly",4,null,0,"Quarterly",4,null,0,"Quarterly",4,null,0,0]
[null,"TOTAL  BID PRICE (EXCL VAT)",{"$nulls":3},{"$f":"F14+F23+F32+F41+F44+F47+F68+F82","v":0},{"$nulls":3},{"$f":"J14+J23+J32+J44+J47+J47+J68+J82","v":0},{"$nulls":3},{"$f":"SUM(N14+N23+N32+N44+N47+N68+N82)","v":0},{"$nulls":3},{"$f":"SUM(R14+R23+R32+R44+R47+R68+R82)","v":0},{"$nulls":3},{"$f":"SUM(V14+V23+V32+V44+V47+V68+V82)","v":0},{"$f":"SUM(W14+W23+W32+W44+W47+W68+W82)","v":0}]
[null,"VAT (@15%)",{"$nulls":3},{"$f":"F93*0.15","v":0},{"$nulls":3},{"$f":"J93*0.15","v":0},{"$nulls":3},{"$f":"N93*0.15","v":0},{"$nulls":3},{"$f":"R93*0.15","v":0},{"$nulls":3},{"$f":"V93*0.15","v":0},{"$f":"W93*0.15","v":0}]
[null,"TOTAL  BID PRICE (INCL VAT)",{"$nulls":3},{"$f":"F93+F94","v":0},{"$nulls":3},{"$f":"J93+J94","v":0},{"$nulls":3},{"$f":"N93+N94","v":0},{"$nulls":3},{"$f":"R93+R94","v":0},{"$nulls":3},{"$f":"V93+V94","v":0},{"$f":"W93+W94","v":0}]
[]
[null,"NOTE: ALL PRICES MUST INCLUDE Transportation, Connecting the brackets and Warranty."]
[]
[null,"I, the bidder, confirm that the price(s) and rate(s) quoted cover all the goods and/or works specified in the bidding documents; that the price(s) or rate(s) cover all my obligations and I accept that any mistakes regarding price(s), rate(s) or calculations will be at my own risk.\n[Note: First convert to PDF, then add signature]"]
[null,null,"Name","Capacity"]
[]
[null,null,"Signature (above)","Date"]